bitfinex/quotes_ETHUSD_20220731
["timestamp","ask_amount","ask_price","bid_price","bid_amount"]
[1659305024604,3.0625,1696.1,1695.3,0.5429508]
[1659305024785,2.89804672,1696.0,1695.3,0.5429508]
[1659305024955,9.01449767,1696.0,1695.3,0.5429508]
[1659305025301,2.89804672,1695.9,1695.3,0.5429508]
[1659305025507,2.94804672,1696.0,1695.7,0.2]
[1659305025709,3.1678,1696.3,1695.9,1.9]
[1659305025710,0.05,1696.3,1695.9,1.9]
[1659305025861,0.05,1696.5,1695.8,0.4427]
[1659305026054,0.05,1696.6,1695.7,0.4927]
[1659305026255,0.05,1696.6,1695.9,0.2]
[1659305026471,10.8919,1696.8,1695.9,0.2]
[1659305026472,0.05,1696.7,1696.0,0.36852421]
[1659305026692,13.8541,1696.8,1696.2,0.2]
[1659305026896,2.9122,1696.8,1696.2,2.89804672]
[1659305027109,0.05,1696.9,1696.8,0.4]
[1659305027280,0.05,1697.3,1696.8,5.09804672]
[1659305027461,0.05,1697.5,1696.9,2.89804672]
[1659305027659,10.7398,1697.8,1697.0,6.7]
[1659305027660,0.05,1697.7,1697.0,6.7]
[1659305027873,2.9909,1697.8,1697.1,3.23931012]
[1659305028073,0.05,1697.9,1697.2,5.89804672]
[1659305028314,0.4421,1698.2,1697.2,5.89804672]
[1659305028315,0.05,1698.0,1697.3,5.89804672]
[1659305028515,8.241,1698.2,1697.4,3.23931012]
[1659305028516,0.05,1698.1,1697.4,3.23931012]
[1659305028674,8.291,1698.2,1697.5,3.19243672]
[1659305028873,0.4421,1698.2,1697.5,3.19243672]
[1659305029211,0.05,1698.3,1697.6,9.93931012]
[1659305029405,0.05,1698.4,1697.9,0.29429]
[1659305029722,13.5565,1698.6,1697.9,0.59429]
[1659305029723,2.8667,1698.6,1697.9,0.59429]
[1659305029867,2.8667,1698.6,1697.8,0.05]
[1659305029868,0.44545095,1698.5,1697.8,0.05]
[1659305030068,6.55845095,1698.5,1697.7,0.05]
[1659305030267,6.60845095,1698.5,1697.8,0.35328286]
[1659305030504,6.55845095,1698.5,1697.8,0.35328286]
[1659305030717,0.01999568,1698.4,1697.8,0.35328286]
[1659305031276,0.00345095,1698.3,1697.6,0.05]
[1659305031486,10.05855095,1698.3,1697.6,0.5917198]
[1659305031685,2.89804672,1698.2,1697.5,0.05]
[1659305031917,9.45314672,1698.1,1697.4,0.05]
[1659305032118,9.01104672,1698.0,1697.3,0.05]
[1659305032271,9.01104672,1698.0,1697.2,0.34445]
[1659305032272,2.89804672,1697.9,1697.2,0.34445]
[1659305032471,2.89804672,1697.9,1697.2,0.64773711]
[1659305032718,2.94804672,1698.0,1697.6,0.2]
[1659305032922,0.05,1698.2,1697.7,2.89804672]
[1659305033078,0.06999568,1698.4,1697.8,0.55328286]
[1659305033272,0.06999568,1698.4,1698.2,0.2]
[1659305033273,0.01999568,1698.4,1698.2,0.2]
[1659305033678,0.00345095,1698.6,1698.2,0.2]
[1659305033875,0.442,1698.5,1697.9,0.05]
[1659305034132,0.442,1698.5,1697.7,0.05]
[1659305034333,0.442,1698.5,1697.8,0.51724776]
[1659305034334,0.492,1698.5,1697.8,0.51724776]
[1659305034498,0.00345095,1698.4,1697.8,0.51724776]
[1659305034878,0.02344663,1698.4,1697.8,0.51724776]
[1659305035109,0.02344663,1698.4,1698.1,0.2]
[1659305035110,0.01999568,1698.4,1698.1,0.2]
[1659305035295,0.01999568,1698.4,1698.1,0.5412634]
[1659305035533,0.01999568,1698.4,1698.2,0.17598436]
[1659305036111,0.01999568,1698.4,1698.1,0.3412634]
[1659305036313,0.99,1699.2,1698.9,0.4]
[1659305036542,2.198,1699.7,1699.0,15.88842495]
[1659305036757,11.4707,1700.4,1699.2,3.09804672]
[1659305036959,11.4707,1700.4,1699.1,9.5549]
[1659305036960,11.4707,1700.4,1699.3,6.58984672]
[1659305037110,11.0292,1700.4,1699.6,0.2]
[1659305037311,11.0292,1700.4,1699.8,0.2]
[1659305037510,0.7415,1700.5,1699.8,0.2]
[1659305037753,0.05,1700.5,1699.9,0.17598436]
[1659305037958,3.3533,1700.6,1700.2,0.2]
[1659305038165,3.35644755,1700.6,1699.9,0.05]
[1659305038377,3.35644755,1700.6,1699.8,0.05]
[1659305038664,3.40644755,1700.6,1699.7,0.25]
[1659305038845,2.96494755,1700.6,1699.9,0.34471435]
[1659305039029,2.9118,1700.6,1699.9,0.34471435]
[1659305039351,2.9118,1700.6,1699.9,0.54471435]
[1659305039558,2.9118,1700.6,1700.3,0.2]
[1659305040058,2.9118,1700.6,1700.1,0.54471435]
[1659305040264,2.9118,1700.6,1700.1,0.34471435]
[1659305040422,3.5,1700.3,1699.9,0.05]
[1659305040615,3.5,1700.3,1699.6,0.05]
[1659305040616,7.0,1700.3,1699.6,0.05]
[1659305040835,1.5,1700.0,1698.7,0.5882]
[1659305041074,7.0,1699.7,1698.7,0.29413]
[1659305041230,7.4917,1699.7,1698.7,0.29413]
[1659305041566,7.35,1699.7,1698.7,0.05]
[1659305041721,9.548,1699.7,1698.7,0.05]
[1659305042058,0.05,1699.7,1699.1,0.2]
[1659305042214,0.05,1699.7,1698.6,0.29417]
[1659305042215,5.6441,1699.8,1699.4,0.2]
[1659305042414,1.05,1700.0,1699.9,0.4]
[1659305042662,4.95586309,1701.0,1700.1,2.9355546]
[1659305042663,0.05,1700.4,1700.1,2.9355546]
[1659305042860,0.05,1700.7,1700.3,0.4]
[1659305043080,0.05,1700.9,1700.6,0.4]
[1659305043281,0.4412,1701.7,1700.8,0.7]
[1659305043282,0.05,1701.2,1700.8,0.7]
[1659305043461,0.05,1701.4,1700.9,5.92996164]
[1659305043680,0.00275419,1701.2,1701.0,3.19804672]
[1659305043986,0.00275419,1701.2,1701.1,2.89804672]
[1659305044222,0.00275419,1701.2,1701.1,5.89804672]
[1659305044495,0.05,1701.6,1701.1,1.06857982]
[1659305044771,3.5,1701.7,1700.9,0.05]
[1659305044772,3.5,1701.3,1700.9,0.05]
[1659305044982,3.5,1701.1,1700.6,0.05]
[1659305045140,3.5,1701.1,1700.4,0.05]
[1659305045141,0.4414,1701.0,1700.4,0.05]
[1659305045334,0.4414,1701.0,1699.3,5.3849]
[1659305045335,3.5,1700.7,1700.2,0.05]
[1659305045535,3.5,1700.5,1699.1,3.3126]
[1659305045740,2.81768541,1700.2,1699.0,3.3732]
[1659305045934,0.05,1700.0,1698.9,0.29406]
[1659305046135,0.05,1699.9,1699.7,0.2]
[1659305046372,2.7457,1700.3,1699.1,0.17598436]
[1659305046373,3.5,1700.0,1699.1,0.17598436]
[1659305046561,3.5,1700.0,1698.8,0.4419]
[1659305046562,3.3049635,1699.9,1698.8,0.4419]
[1659305046816,0.05,1699.8,1698.7,0.442]
[1659305047131,20.1856,1700.2,1698.9,0.2]
[1659305047132,0.05,1699.7,1698.9,0.2]
[1659305047350,16.9092,1700.2,1699.0,0.34471435]
[1659305047351,0.05,1699.8,1699.0,0.34471435]
[1659305047624,2.74444983,1699.7,1699.0,0.84471435]
[1659305047791,3.04444983,1699.7,1699.0,0.84471435]
[1659305047993,0.3,1699.7,1699.0,0.84471435]
[1659305048207,0.05,1699.8,1699.0,0.84471435]
[1659305048386,0.7417,1699.7,1699.0,0.84471435]
[1659305048588,0.3,1699.7,1699.0,0.84471435]
[1659305048824,0.7917,1699.8,1699.0,0.84471435]
[1659305049005,0.35,1699.9,1699.0,0.84471435]
[1659305049207,0.05,1699.9,1699.0,0.89471435]
[1659305049592,0.7417,1699.8,1699.0,0.89471435]
[1659305049803,2.89804672,1699.7,1699.0,0.84471435]
[1659305050005,3.19804672,1699.7,1699.0,0.84471435]
[1659305050203,0.05,1699.8,1699.4,0.2]
[1659305050392,0.05,1700.0,1699.9,0.4]
[1659305050624,2.8478,1700.2,1699.5,0.05]
[1659305050823,2.8478,1700.2,1699.4,0.35]
[1659305051136,5.74584672,1700.2,1699.5,0.34471435]
[1659305051333,5.74584672,1700.2,1699.5,3.34471435]
[1659305051844,2.89804672,1700.1,1699.5,3.34471435]
[1659305052027,2.89804672,1700.1,1699.4,0.35]
[1659305052028,3.5,1700.0,1699.3,0.05]
[1659305052226,2.68431842,1699.6,1699.2,0.05]
[1659305052476,2.68431842,1699.6,1699.0,0.5]
[1659305052477,10.95274672,1699.5,1699.0,0.5]
[1659305052626,2.89804672,1699.4,1699.0,0.5]
[1659305052830,0.4917,1699.7,1699.2,0.2]
[1659305053056,2.89804672,1699.6,1699.2,0.2]
[1659305053264,3.19804672,1699.6,1699.2,0.2]
[1659305053951,2.89804672,1699.5,1699.0,0.5]
[1659305054156,3.33974672,1699.5,1699.0,0.5]
[1659305054463,2.89804672,1699.4,1699.0,0.5]
[1659305056026,3.33984672,1699.4,1699.0,0.5]
[1659305056245,3.33984672,1699.4,1699.0,0.8]
[1659305056426,3.33984672,1699.4,1699.0,0.5]
[1659305056653,2.89804672,1699.4,1699.0,0.5]
[1659305057579,0.019753,1699.5,1699.0,0.5]
[1659305057739,0.019753,1699.5,1699.0,0.7]
[1659305058597,0.019753,1699.5,1699.3,0.2]
[1659305058780,0.019753,1699.5,1699.1,0.34471435]
[1659305059666,2.91779972,1699.5,1699.0,0.8]
[1659305059845,2.91779972,1699.5,1699.0,0.5]
[1659305060602,0.019753,1699.5,1699.0,0.5]
[1659305060779,0.019753,1699.5,1699.1,0.54471435]
[1659305061179,0.019753,1699.5,1699.1,3.44276107]
[1659305061392,0.019753,1699.5,1699.1,0.34471435]
[1659305061698,0.019753,1699.5,1699.4,1.7]
[1659305061871,0.019753,1699.5,1699.2,0.2]
[1659305062968,0.019753,1699.5,1699.1,5.09407]
[1659305063189,0.019753,1699.5,1699.1,6.49211672]
[1659305063510,0.019753,1699.5,1699.2,0.34471435]
[1659305064087,1.069753,1699.9,1699.3,2.89804672]
[1659305064305,1.069753,1699.9,1699.3,3.19804672]
[1659305064606,1.069753,1699.9,1699.3,3.54276107]
[1659305066543,2.89804672,1699.8,1699.3,0.3]
[1659305066749,3.33974672,1699.8,1699.1,0.35]
[1659305066918,2.84804672,1699.7,1699.0,0.05]
[1659305067117,2.84804672,1699.7,1698.9,0.05]
[1659305067325,2.84804672,1699.7,1698.9,2.89804672]
[1659305067520,2.84804672,1699.7,1699.0,3.0]
[1659305067955,0.4417,1699.6,1698.9,0.35]
[1659305068109,2.89804672,1699.6,1698.8,0.35]
[1659305068308,2.94804672,1699.6,1698.9,0.34471435]
[1659305068550,2.89804672,1699.6,1698.9,0.34471435]
[1659305069113,3.19804672,1699.6,1698.9,0.34471435]
[1659305069423,20.1546388,1699.0,1698.0,12.26396307]
[1659305069629,3.5,1698.8,1698.0,12.26396307]
[1659305069950,3.34004672,1698.7,1698.0,12.26396307]
[1659305070085,9.913,1698.8,1698.0,12.26396307]
[1659305070086,9.01104672,1698.6,1698.0,12.26396307]
[1659305070284,2.89804672,1698.5,1698.0,12.26396307]
[1659305070522,2.84804672,1698.5,1698.0,12.26396307]
[1659305070722,3.14804672,1698.5,1698.0,12.26396307]
[1659305070926,2.89804672,1698.4,1698.0,12.26396307]
[1659305071134,6.69804672,1698.5,1698.0,12.26396307]
[1659305071422,3.19804672,1698.5,1698.0,12.26396307]
[1659305071791,0.05,1698.7,1698.3,0.2]
[1659305071990,2.9406,1698.9,1698.3,0.2]
[1659305071991,0.05,1698.9,1698.3,0.2]
[1659305072218,3.325,1699.0,1698.6,0.2]
[1659305072389,3.275,1699.0,1698.3,1.55]
[1659305072586,0.05,1699.1,1698.3,2.1]
[1659305073031,0.05,1699.1,1698.3,2.39423]
[1659305073397,0.05,1699.1,1698.7,0.2]
[1659305073598,0.34471435,1699.2,1698.7,0.1]
[1659305073834,0.34471435,1699.2,1698.5,0.05]
[1659305073999,0.64471435,1699.2,1698.4,0.05]
[1659305074198,0.64471435,1699.2,1698.4,3.0]
[1659305074495,0.64471435,1699.2,1698.4,5.89804672]
[1659305074722,0.64471435,1699.2,1698.5,0.29422]
[1659305075123,3.54276107,1699.2,1698.5,0.29422]
[1659305075700,0.1,1698.9,1698.4,3.05]
[1659305075922,0.1,1698.7,1698.2,0.05]
[1659305076129,0.1,1698.7,1698.1,0.29426]
[1659305076341,0.1,1698.7,1698.1,3.19672549]
[1659305076615,0.05,1698.9,1698.4,0.1]
[1659305076862,0.35,1699.1,1698.4,3.29225672]
[1659305077015,0.3,1699.1,1698.4,3.29225672]
[1659305077212,0.3,1699.1,1698.4,3.59225672]
[1659305077503,0.05,1699.2,1698.9,0.1]
[1659305077700,0.05,1699.5,1699.2,0.1]
[1659305077900,10.8149,1700.0,1699.4,0.1]
[1659305077901,0.05,1699.8,1699.4,0.1]
[1659305078114,2.8694,1700.0,1699.4,2.99804672]
[1659305078339,0.05,1700.2,1699.9,0.681]
[1659305078503,0.05,1700.5,1700.1,0.3]
[1659305078707,0.05,1700.7,1700.1,3.3]
[1659305079053,0.00273623,1700.5,1700.1,3.3]
[1659305079358,0.00273623,1700.5,1700.2,0.1]
[1659305079498,0.00273623,1700.5,1700.4,0.681]
[1659305079700,0.05,1700.9,1700.4,0.681]
[1659305079913,9.0886,1701.1,1700.4,0.681]
[1659305080133,9.0886,1701.1,1700.4,0.581]
[1659305080134,9.3386,1701.1,1700.4,0.581]
[1659305080349,9.48331435,1701.1,1700.4,0.581]
[1659305080497,19.09631435,1701.1,1700.3,0.05]
[1659305080699,0.1,1700.4,1700.2,0.05]
[1659305081006,0.1,1700.4,1699.8,0.05]
[1659305081007,10.39921435,1700.3,1699.8,0.05]
[1659305081208,9.613,1700.0,1699.6,0.05]
[1659305081443,0.4416,1699.9,1699.3,0.05]
[1659305081747,0.34471435,1699.8,1699.4,0.1]
[1659305082962,0.34471435,1699.8,1699.1,0.7441]
[1659305083264,0.34471435,1699.8,1699.1,2.1941]
[1659305083468,0.34471435,1699.8,1699.1,5.1941]
[1659305084152,0.34471435,1699.8,1699.1,5.0941]
[1659305084583,0.34471435,1699.8,1699.1,2.0441]
[1659305085291,0.34471435,1699.8,1699.1,4.94214672]
[1659305085501,0.34471435,1699.8,1699.2,3.0]
[1659305085864,0.1,1699.6,1699.1,0.2941]
[1659305086064,2.89804672,1699.6,1698.9,0.05]
[1659305086263,0.1,1699.5,1698.8,0.05]
[1659305086486,0.1,1699.5,1698.4,0.442]
[1659305086487,0.1,1698.9,1698.7,0.05]
[1659305086669,0.1,1698.9,1698.3,0.05]
[1659305086885,2.99804672,1698.9,1698.1,19.63336307]
[1659305087118,3.04804672,1698.9,1698.1,11.96396307]
[1659305087409,2.89804672,1698.8,1698.1,11.96396307]
[1659305087566,0.15,1698.9,1698.3,0.29427]
[1659305087770,2.89804672,1698.8,1698.3,0.29427]
[1659305089018,2.89804672,1698.8,1698.1,12.01396307]
[1659305089217,2.89804672,1698.8,1698.1,11.96396307]
[1659305089430,0.15,1698.9,1698.2,2.89804672]
[1659305089763,0.1,1698.9,1698.2,2.89804672]
[1659305089964,0.1,1698.9,1698.3,3.0]
[1659305090146,0.1,1698.9,1698.3,3.4421]
[1659305090351,0.1,1698.9,1698.3,3.0]
[1659305090862,0.44471435,1698.9,1698.3,3.0]
[1659305091071,0.34471435,1698.9,1698.3,3.0]
[1659305091843,0.34471435,1698.9,1698.3,3.29426]
[1659305093500,0.1,1698.8,1698.3,3.0]
[1659305094008,2.99804672,1698.8,1698.3,3.0]
[1659305094356,2.99804672,1698.8,1698.2,0.3]
[1659305094357,2.99804672,1698.8,1698.2,3.3]
[1659305094558,2.99804672,1698.8,1698.2,3.6]
[1659305096798,2.99804672,1698.8,1698.2,3.1]
[1659305097005,2.99804672,1698.8,1698.2,3.0]
[1659305098194,2.99804672,1698.8,1698.2,3.6]
[1659305100135,2.99804672,1698.7,1698.2,3.3]
[1659305100334,2.99804672,1698.7,1698.1,11.96396307]
[1659305100335,0.1,1698.3,1698.1,11.96396307]
[1659305100592,2.99804672,1698.2,1698.1,11.96396307]
[1659305100792,2.99804672,1698.2,1698.0,0.3]
[1659305100955,4.39804672,1698.1,1698.0,0.3]
[1659305102265,4.49804672,1698.1,1698.0,0.3]
[1659305102467,4.49804672,1698.1,1697.0,0.29449]
[1659305102468,0.1,1697.6,1697.0,0.29449]
[1659305102679,0.1,1697.6,1696.8,0.4425]
[1659305102680,2.89804672,1697.5,1696.8,0.4425]
[1659305102973,2.89804672,1697.5,1696.8,1.9425]
[1659305103179,3.04804672,1697.6,1697.0,0.29449]
[1659305103377,2.99804672,1697.6,1697.0,0.29449]
[1659305103582,3.34276107,1697.6,1697.0,0.29449]
[1659305103739,3.34276107,1697.6,1697.0,0.59449]
[1659305105293,3.34276107,1697.6,1697.0,0.29449]
[1659305105894,3.34276107,1697.6,1697.0,0.4711703]
[1659305105895,0.44471435,1697.6,1697.0,0.4711703]
[1659305106044,0.05,1697.7,1697.0,0.4711703]
[1659305106045,0.05,1697.7,1697.3,2.89804672]
[1659305106244,0.05,1697.9,1697.3,4.66458672]
[1659305106486,0.05,1698.0,1697.4,3.17598436]
[1659305106688,2.89804672,1698.0,1697.4,3.29444]
[1659305107054,2.89804672,1698.0,1697.4,0.29444]
[1659305107758,0.1,1697.9,1697.4,0.29444]
[1659305107959,0.1,1697.6,1697.4,0.29444]
[1659305108216,3.04804672,1697.9,1697.4,0.29444]
[1659305108382,0.05,1698.1,1697.4,0.29444]
[1659305108570,2.94804672,1698.2,1697.4,6.19248672]
[1659305108776,6.2346,1698.3,1697.8,0.1]
[1659305108996,0.442,1698.5,1697.9,2.89804672]
[1659305108997,0.05,1698.5,1697.9,2.89804672]
[1659305109198,10.3469131,1699.5,1697.9,2.89804672]
[1659305109199,3.1983,1699.3,1698.4,3.8]
[1659305109364,3.1983,1699.8,1698.9,0.1]
[1659305109696,3.1983,1699.8,1698.9,0.05]
[1659305109697,5.39407065,1699.5,1698.9,0.05]
[1659305109900,0.88651435,1699.4,1698.7,0.05]
[1659305110066,0.88651435,1699.4,1698.6,0.05]
[1659305110259,0.39471435,1699.4,1698.6,3.34004672]
[1659305110488,0.39471435,1699.4,1698.5,0.05]
[1659305110489,7.1,1699.2,1698.5,0.05]
[1659305110699,0.1,1699.0,1698.4,0.05]
[1659305110910,0.1,1698.8,1698.2,0.05]
[1659305111118,0.1,1698.8,1698.0,0.05]
[1659305111294,0.1,1698.8,1697.8,2.8645]
[1659305111295,0.8419,1698.8,1697.9,0.05]
[1659305111494,0.34471435,1698.7,1697.9,0.05]
[1659305111699,0.34471435,1698.7,1697.8,2.9145]
[1659305111917,0.39471435,1698.7,1697.8,6.25474672]
[1659305112134,0.39471435,1698.7,1698.1,0.1]
[1659305112285,5.6401,1698.9,1698.8,2.181]
[1659305112286,0.05,1698.9,1698.8,2.181]
[1659305112485,11.72,1699.9,1698.8,5.42094672]
[1659305112486,0.05,1699.3,1698.8,5.42094672]
[1659305112701,0.05,1699.5,1698.9,6.19219672]
[1659305112938,0.34471435,1699.5,1698.8,0.4419]
[1659305113139,0.34471435,1699.5,1698.7,3.05]
[1659305113140,0.4418,1699.4,1698.7,3.05]
[1659305113432,0.4418,1699.4,1698.7,3.0]
[1659305113785,0.39471435,1699.5,1699.0,0.1]
[1659305114024,0.05,1699.7,1699.0,0.1]
[1659305114233,0.4417,1699.6,1699.0,0.1]
[1659305114449,0.4917,1699.7,1699.0,0.1]
[1659305114733,0.4417,1699.7,1699.0,0.1]
[1659305115087,0.7417,1699.7,1698.9,0.05]
[1659305115288,0.1,1699.4,1698.8,0.05]
[1659305115530,0.1,1699.4,1698.7,3.6]
[1659305115921,0.05,1699.5,1698.8,2.89804672]
[1659305116120,0.05,1699.6,1698.9,3.0]
[1659305116432,0.05,1699.6,1698.8,0.1]
[1659305116433,0.4917,1699.7,1698.8,0.15]
[1659305116726,0.4917,1699.7,1698.8,0.05]
[1659305116727,1.0917,1699.7,1698.8,0.05]
[1659305117989,1.0917,1699.7,1698.8,0.15]
[1659305118189,2.89804672,1699.6,1698.8,0.15]
[1659305118389,0.34471435,1699.5,1698.8,0.1]
[1659305118623,3.24276107,1699.5,1698.8,0.1]
[1659305119435,7.0,1699.3,1698.7,0.05]
[1659305119637,7.0,1699.3,1697.9,0.5813]
[1659305119638,4.081,1698.8,1697.9,0.5813]
[1659305119797,0.1,1698.6,1697.8,0.46139798]
[1659305120000,2.89804672,1698.5,1697.8,0.46139798]
[1659305120198,0.34471435,1698.4,1697.8,0.46139798]
[1659305120401,2.89804672,1698.3,1697.8,0.46139798]
[1659305120637,3.19804672,1698.3,1697.8,0.46139798]
[1659305120797,2.89804672,1698.2,1697.8,0.46139798]
[1659305120991,3.24276107,1698.2,1697.8,0.46139798]
[1659305121407,0.34471435,1698.2,1697.8,0.46139798]
[1659305121627,0.05,1698.4,1697.8,0.76139798]
[1659305121792,0.05,1698.5,1698.4,0.3]
[1659305121992,0.05,1698.9,1698.2,0.1]
[1659305122242,3.24276107,1698.9,1698.2,0.1]
[1659305122556,4.83994672,1698.8,1698.1,0.3]
[1659305122699,4.83994672,1698.8,1697.8,1.05572798]
[1659305122700,0.1,1698.5,1697.8,1.05572798]
[1659305122899,2.89804672,1698.4,1697.8,0.75572798]
[1659305123124,0.49471435,1698.5,1697.8,0.75572798]
[1659305123328,0.44471435,1698.5,1697.8,0.75572798]
[1659305124141,0.34471435,1698.5,1697.8,0.75572798]
[1659305124446,0.34471435,1698.5,1697.8,1.05572798]
[1659305126823,3.24276107,1698.5,1697.8,0.75572798]
[1659305127132,3.24276107,1698.5,1697.7,0.05]
[1659305127133,0.1,1698.3,1697.7,0.05]
[1659305127469,2.99804672,1698.3,1697.5,8.1401]
[1659305127773,3.29804672,1698.3,1697.5,10.98814672]
[1659305128078,0.05,1698.4,1698.0,0.1]
[1659305128277,11.1283,1698.7,1698.2,0.1]
[1659305128428,7.1,1698.5,1698.0,0.05]
[1659305128630,0.1,1698.2,1697.8,0.05]
[1659305128825,2.99804672,1698.2,1697.5,8.1401]
[1659305129060,2.99804672,1698.2,1697.4,0.05]
[1659305129061,2.89804672,1698.2,1697.4,0.05]
[1659305129370,2.89804672,1698.2,1697.4,2.89804672]
[1659305129772,6.05914672,1698.3,1697.4,3.19243672]
[1659305129970,2.89804672,1698.2,1697.5,3.0]
[1659305130170,2.89804672,1698.2,1697.5,3.3]
[1659305130414,3.34014672,1698.2,1697.4,0.05]
[1659305130613,2.89804672,1698.2,1697.4,2.89804672]
[1659305130775,2.89804672,1698.2,1697.5,3.0]
[1659305131118,3.24276107,1698.2,1697.5,3.0]
[1659305131692,3.34276107,1698.2,1697.5,3.0]
[1659305132294,3.64276107,1698.2,1697.5,3.0]
[1659305132513,3.34276107,1698.2,1698.1,0.46139798]
[1659305132828,3.64276107,1698.2,1698.1,0.46139798]
[1659305134005,0.64471435,1698.2,1698.1,0.46139798]
[1659305135139,0.34471435,1698.2,1698.1,0.46139798]
[1659305135339,2.8111,1698.3,1698.1,0.46139798]
[1659305135542,3.1111,1698.3,1698.1,0.46139798]
[1659305135921,0.3,1698.3,1698.1,0.46139798]
[1659305136106,3.1476,1698.4,1698.1,0.46139798]
[1659305136633,0.742,1698.5,1698.1,0.46139798]
[1659305136803,3.64004672,1698.5,1698.1,0.46139798]
[1659305137428,3.64004672,1698.5,1697.9,0.4709342]
[1659305137740,0.05,1698.7,1698.4,0.46139798]
[1659305137949,15.69401,1699.4,1698.4,0.46139798]
[1659305137950,0.05,1699.0,1698.4,0.46139798]
[1659305138156,0.05,1699.2,1698.4,3.6536747]
[1659305138452,13.9793,1699.3,1698.5,3.3]
[1659305138613,13.9293,1699.3,1698.5,3.3]
[1659305139528,13.9293,1699.3,1698.6,0.29419]
[1659305140052,14.37011566,1699.3,1698.5,3.35]
[1659305140205,14.71191566,1699.3,1698.6,3.0]
[1659305140411,14.71191566,1699.3,1698.5,0.3]
[1659305140412,10.92221435,1699.3,1698.5,0.05]
[1659305140633,2.89804672,1699.2,1698.4,0.81139798]
[1659305140832,2.89804672,1699.2,1698.4,3.6594447]
[1659305141044,2.89804672,1699.2,1698.5,3.3]
[1659305141244,2.89804672,1699.2,1698.5,3.6]
[1659305141636,9.01104672,1699.1,1698.4,0.51139798]
[1659305141815,12.46104672,1698.9,1698.4,0.46139798]
[1659305142019,9.45294672,1698.8,1698.4,0.46139798]
[1659305142215,2.89804672,1698.7,1698.4,0.46139798]
[1659305142751,2.89804672,1698.7,1698.1,0.05]
[1659305142970,2.89804672,1698.7,1697.9,0.34432]
[1659305143266,0.34471435,1698.8,1698.5,0.46139798]
[1659305143267,3.29276107,1698.8,1698.5,0.46139798]
[1659305143447,3.24276107,1698.8,1698.5,0.46139798]
[1659305143620,3.54276107,1698.8,1698.5,0.46139798]
[1659305147352,3.54276107,1698.8,1698.2,0.05]
[1659305147353,9.713,1698.6,1698.2,0.05]
[1659305147507,6.84004672,1698.5,1698.2,0.05]
[1659305147707,6.113,1698.3,1697.9,0.05]
[1659305147908,3.19804672,1698.2,1697.6,0.05]
[1659305148130,3.19804672,1698.2,1697.4,7.7657]
[1659305148131,2.89804672,1698.1,1697.4,7.7657]
[1659305148370,2.89804672,1698.1,1697.3,0.05]
[1659305148565,2.94804672,1698.1,1697.3,2.89804672]
[1659305148738,0.05,1698.1,1697.4,3.1766226]
[1659305149068,0.05,1698.2,1697.9,0.1]
[1659305149266,0.05,1698.5,1697.9,0.1]
[1659305149424,3.19804672,1698.5,1697.9,0.1]
[1659305150840,0.3,1698.1,1697.9,0.1]
[1659305151241,0.05,1698.4,1697.9,0.1]
[1659305151444,0.34471435,1698.4,1697.9,0.1]
[1659305153262,0.34471435,1698.4,1697.9,0.01776532]
[1659305153506,0.34471435,1698.4,1697.9,2.91581204]
[1659305153806,4.2161,1698.8,1697.9,2.91581204]
[1659305153807,0.4419,1698.9,1698.4,0.1]
[1659305153971,6.9912851,1699.5,1698.7,0.1]
[1659305153972,12.45604,1699.4,1698.7,0.1]
[1659305154171,11.72,1699.4,1698.7,2.89804672]
[1659305154364,11.72,1699.4,1698.6,5.8621487]
[1659305154365,11.72,1699.4,1698.8,3.0]
[1659305154564,12.06471435,1699.4,1698.6,3.05]
[1659305154765,12.06471435,1699.4,1698.7,3.0]
[1659305155111,12.06471435,1699.4,1698.6,0.05]
[1659305155262,12.06471435,1699.4,1698.5,0.05]
[1659305155462,12.11471435,1699.4,1698.7,0.04848655]
[1659305155710,12.06471435,1699.4,1698.7,0.04848655]
[1659305155891,12.66471435,1699.4,1698.7,0.04848655]
[1659305156516,12.66471435,1699.4,1698.9,0.1]
[1659305156935,12.66471435,1699.4,1698.7,0.09848655]
[1659305157106,18.0979085,1699.4,1698.9,0.1]
[1659305159048,18.0979085,1699.4,1698.7,0.09848655]
[1659305159218,18.0979085,1699.4,1698.9,0.05051548]
[1659305159219,18.5397085,1699.4,1698.9,0.05051548]
[1659305160104,0.29424,1699.3,1698.9,0.03232069]
[1659305160306,3.33984672,1699.2,1698.9,0.03232069]
[1659305160545,2.89804672,1699.2,1698.9,0.03232069]
[1659305160728,3.79232672,1699.2,1698.9,0.03232069]
[1659305161148,3.79232672,1699.2,1698.9,0.00085156]
[1659305161704,3.74232672,1699.2,1698.9,0.00085156]
[1659305161952,2.89804672,1699.1,1698.9,0.00085156]
[1659305162108,4.66958672,1699.1,1698.9,0.00085156]
[1659305162302,4.66958672,1699.1,1698.5,0.06884461]
[1659305162507,0.3,1699.0,1698.5,0.01884461]
[1659305163010,0.59428,1699.0,1698.5,0.01884461]
[1659305163203,0.89428,1699.0,1698.4,0.1]
[1659305163988,1.23899435,1699.0,1698.4,0.1]
[1659305164194,1.68089435,1699.0,1698.4,0.1]
[1659305164645,1.23899435,1699.0,1698.4,0.1]
[1659305165484,0.93899435,1699.0,1698.4,0.1]
[1659305166492,1.23899435,1699.0,1698.4,0.1]
[1659305166847,1.23899435,1699.0,1698.8,0.1]
[1659305167364,0.4418,1699.2,1698.8,0.10441695]
[1659305167679,2.7211,1699.3,1698.8,0.00441695]
[1659305168289,2.7211,1699.3,1698.8,0.02148643]